[Event "Prague Festival Open 2022"]
[Site "Prague"]
[Date "2022.06.13"]
[Round "5.11"]
[White "Szpar, Milosz"]
[Black "Domalchuk-Jonasson, Aleksandr"]
[Result "0-1"]
[ECO "C02"]
[WhiteElo "2434"]
[BlackElo "2190"]
[Annotator "TA"]
[PlyCount "78"]
[EventDate "2022.06.10"]
[EventType "swiss"]
[EventCountry "CZE"]
[SourceTitle "playchess.com"]
[Source "ChessBase"]
[SourceQuality "1"]
[TimeControl "40/5400+30:1800+30"]

{[%evp 13,78,-10,-10,-16,-7,-5,-6,0,29,31,38,16,18,10,41,41,26,21,26,21,22,26,27,-2,-7,-40,-57,-97,-93,-95,-97,-130,-127,-125,-124,-158,-149,-258,-215,-407,-414,-410,-392,-464,-413,-441,-442,-457,-458,-455,-444,-464,-455,-427,-445,-462,-436,-510,-364,-506,-498,-487,-479,-5206,-5165,-1471,-1147]} 1. e4 {[%emt 0:03:14]} e6 {[%emt 0:00:06]} 2. d4 {[%emt 0:00:25]} d5 {[%emt 0:00:05]} 3. e5 {[%emt 0:00:16]} c5 {[%emt 0:01:01]} 4. c3 {[%emt 0:00:08]} Nc6 {[%emt 0:00:41]} 5. Nf3 {[%emt 0:00:31]} Nge7 {[%emt 0:02:45]} 6. Bd3 {[%emt 0:03:36]} Nf5 {[%emt 0:02:55]} 7. Bxf5 {[%emt 0:03:28]} exf5 {[%emt 0:00:05]} 8. dxc5 {[%emt 0:00:22] C02: French: Advance Variation.} Bxc5 {[%emt 0:03:20]} 9. Nbd2 {[%emt 0:01:22] [#]} h6 $146 {[%emt 0:04:59]} ({Predecessor:} 9... O-O 10. Nb3 Be7 11. O-O Be6 12. Re1 Rc8 13. Nfd4 Nxd4 14. Nxd4 Qd7 15. Qh5 Rfe8 {½-½ (27) Salmensuu,O (2280)-Keskisarja,T (2255) Helsinki 1996}) 10. Nb3 {[%emt 0:04:23] The position is equal.} Be7 {[%emt 0:00:39]} 11. O-O {[%emt 0:04:20]} g5 {[%emt 0:04:25]} 12. Nfd4 {[%emt 0:12:39]} f4 {[%emt 0:12:21]} 13. Qe2 {[%emt 0:09:22]} Nxd4 {[%emt 0:15:49]} 14. Nxd4 {[%emt 0:02:28]} Qb6 {[%emt 0:00:12]} 15. Qb5+ {[%emt 0:10:40]} Qxb5 {[%emt 0:02:13]} 16. Nxb5 {[%emt 0:00:03]} Kd7 {[%emt 0:04:38] Against Nc7} 17. g3 {[%emt 0:03:40]} Bc5 {[%emt 0:12:07]} 18. b4 {[%emt 0:07:52]} a6 {[%emt 0:02:03]} 19. Na3 {[%emt 0:00:23]} Ba7 {[%emt 0:00:47]} 20. gxf4 {[%emt 0:00:59] Black converts the advantage convincingly.} gxf4 {[%emt 0:00:46]} 21. Bxf4 {[%emt 0:00:51]} Rg8+ {[%emt 0:04:45]} 22. Kh1 {[%emt 0:02:51]} Ke7 {[%emt 0:01:07][%mdl 1024] ...Bg4 is the strong threat. Black has strong compensation.} 23. Bg3 {[%emt 0:05:30]} Bh3 {[%emt 0:02:26]} 24. Rfe1 {[%emt 0:02:16]} h5 {[%emt 0:03:11]} 25. Rad1 {[%emt 0:04:31]} (25. c4 $17) 25... Rac8 $19 {[%emt 0:03:12]} 26. Nc2 $2 {[%emt 0:07:39]} (26. Rd3 {was worth a try.} Ke6 27. Rf3) 26... Bg4 {[%emt 0:07:53] Hoping for ...Bf3+. A strong pair of Bishops.} ({Not} 26... Rxc3 $2 27. Rd2 $19) 27. Rd3 {[%emt 0:02:36] Prevents Bf3+.} ({Much weaker is} 27. Bh4+ Kf8 28. Rd3 Bf5 29. Rxd5 Bxc2 $19) 27... Bf5 {[%emt 0:00:05][%mdl 64] [#] Skewer} 28. Bh4+ {[%emt 0:00:41]} Ke6 {[%emt 0:02:07]} 29. Nd4+ {[%emt 0:00:46]} Bxd4 {[%emt 0:00:04]} 30. Rxd4 {[%emt 0:00:05]} Be4+ {[%emt 0:00:15]} 31. Rexe4 {[%emt 0:02:42]} dxe4 {[%emt 0:00:04][%mdl 4096] Endgame KRR-KRB} 32. Bg3 {[%emt 0:00:44]} Rxc3 {[%emt 0:02:06] [#] Threatens to win with ...Rc1+.} 33. Rd6+ {[%emt 0:03:32]} Ke7 {[%emt 0:00:04] White must now prevent ...Rc1+.} 34. Bh4+ {[%emt 0:00:37]} Kf8 {[%emt 0:00:34] ( -> ...Rc1+)} 35. Rd1 {[%emt 0:01:06] Against Rc1} Kg7 {[%emt 0:03:34]} 36. Bf6+ {[%emt 0:01:07]} Kh7 {[%emt 0:00:11] Black is clearly winning.} 37. e6 {[%emt 0:00:40]} Rd3 {[%emt 0:01:13]} 38. Rxd3 {[%emt 0:00:27]} (38. Re1 $142 fxe6 39. Be7) 38... exd3 {[%emt 0:00:07][%cal Be4d3,Bd3d2][%mdl 32]} 39. exf7 {[%emt 0:00:23]} d2 {[%emt 0:00:27] Weighted Error Value: White=0.51/Black=0.09 (flawless)} 0-1

[Event "Prague Festival Open 2022"]
[Site "Prague"]
[Date "2022.06.13"]
[Round "5.12"]
[White "Wagner, Dennis"]
[Black "Boehme, Markus"]
[Result "1/2-1/2"]
[ECO "D31"]
[WhiteElo "2586"]
[BlackElo "2120"]
[Annotator "TA"]
[PlyCount "119"]
[EventDate "2022.06.10"]
[EventType "swiss"]
[EventCountry "CZE"]
[SourceTitle "playchess.com"]
[Source "ChessBase"]
[SourceQuality "1"]
[TimeControl "40/5400+30:1800+30"]

{[%evp 9,119,16,21,21,23,22,22,21,23,24,22,19,23,20,17,23,22,14,18,26,30,0,0,-9,0,0,15,0,0,0,0,0,0,0,0,0,12,0,15,0,22,6,19,6,0,10,13,-30,-10,-12,-6,-12,-18,-31,-11,-56,-26,-16,0,0,0,-7,0,0,0,-17,-6,-6,-7,-6,0,0,0,0,0,0,0,0,0,0,9,8,9,9,9,9,9,9,9,3,10,0,0,0,0,0,0,0,0,0,0,0,0,0,0,0,0,0,0,0,0,0]} 1. d4 {[%emt 0:00:05]} d5 {[%emt 0:00:11]} 2. c4 {[%emt 0:00:14]} e6 {[%emt 0:00:05]} 3. Nc3 {[%emt 0:02:29]} a6 {[%emt 0:00:17]} 4. cxd5 {[%emt 0:00:29]} exd5 {[%emt 0:00:05]} 5. Bf4 {[%emt 0:00:40]} Nf6 {[%emt 0:01:54]} 6. e3 {[%emt 0:00:28] D31: Queen's Gambit Declined: Semi-Slav without ...Nf6 (+ Marshall Gambit and Noteboom) and Exchange Variation lines without ...Nf6.} Bd6 {[%emt 0:01:05]} 7. Bg5 {[%emt 0:00:42]} c6 {[%emt 0:04:02]} 8. Bd3 {[%emt 0:00:11]} O-O {[%emt 0:01:31] 8...Nbd7 gains popularity.} 9. Qc2 {[%emt 0:04:27][%cal Od3h7] And now Bxh7+! would win.} h6 {[%emt 0:01:17]} 10. Bh4 {[%emt 0:00:05]} Re8 {[%emt 0:05:13]} 11. Nge2 {[%emt 0:03:19]} a5 {[%emt 0:04:53]} 12. h3 {[%emt 0:01:02]} Na6 {[%emt 0:00:47][%cal Bb8a6,Ba6c7,Bc7e6][%mdl 32]} 13. a3 {[%emt 0:00:18] Against Nb4} Nc7 {[%emt 0:07:29]} 14. O-O {[%emt 0:00:25] [#]} Be7 $146 {[%emt 0:23:53]} ({Predecessor (10):} 14... Ne6 15. f4 Be7 16. Ng3 g5 17. fxg5 hxg5 18. Nf5 gxh4 19. Qf2 Ng7 20. Nh6+ Kf8 21. e4 dxe4 22. Nxe4 {0-1 (29) Dubov,D (2702)-Xiong,J (2688) Chess.com INT 2022}) 15. f3 {[%emt 0:14:42]} c5 {[%emt 0:03:32]} 16. b3 {[%emt 0:14:32] Inhibits c4.} b6 {[%emt 0:07:40]} 17. Bf2 {[%emt 0:00:53]} Ne6 {[%emt 0:04:48]} 18. Bb5 {[%emt 0:05:30]} Bd7 {[%emt 0:00:58] Against Bc6} 19. Rfd1 {[%emt 0:00:30]} Bxb5 {[%emt 0:02:00]} 20. Nxb5 {[%emt 0:00:03]} Rc8 {[%emt 0:02:23]} 21. Qd3 {[%emt 0:02:42]} Qd7 {[%emt 0:03:20]} 22. a4 {[%emt 0:00:55]} Red8 {[%emt 0:02:47]} 23. Bg3 {[%emt 0:02:43]} Qb7 {[%emt 0:07:52]} 24. Kh1 {[%emt 0:10:03]} Qd7 {[%emt 0:00:40]} 25. Be5 {[%emt 0:00:16]} Ne8 {[%emt 0:04:21][%cal Bf6e8,Be8c7,Bc7e6][%mdl 32]} 26. Nec3 {[%emt 0:11:25]} cxd4 {[%emt 0:02:11]} 27. Nxd4 {[%emt 0:06:40]} Bf6 {[%emt 0:00:35]} 28. Bg3 {[%emt 0:05:59]} Nxd4 {[%emt 0:00:42]} 29. exd4 {[%emt 0:00:01]} Nc7 {[%emt 0:01:02]} 30. Re1 {[%emt 0:04:37]} Ne6 {[%emt 0:00:26]} 31. Nb5 {[%emt 0:00:01]} Rc6 {[%emt 0:00:52]} 32. Re2 {[%emt 0:00:25]} Rdc8 {[%emt 0:02:23]} 33. Rae1 {[%emt 0:00:02]} Rc1 {[%emt 0:01:20] The position is equal.} 34. Kh2 {[%emt 0:00:23]} Rxe1 {[%emt 0:00:12]} 35. Rxe1 {[%emt 0:00:02]} Rc6 {[%emt 0:01:38]} 36. Qf5 {[%emt 0:01:15]} Qd8 {[%emt 0:01:07]} 37. Re2 {[%emt 0:07:09][%cal Be1e2,Be2d2,Bd2d5,Bd5e5][%mdl 32]} Nxd4 {[%emt 0:02:12]} 38. Nxd4 {[%emt 0:00:18]} Bxd4 {[%emt 0:00:01]} 39. Rd2 $1 {[%emt 0:00:42]} Rf6 {[%emt 0:00:56]} 40. Qd3 {[%emt 0:02:58]} Bc5 {[%emt 0:00:39]} 41. Qxd5 {[%emt 0:30:20]} Qxd5 {[%emt 0:02:18]} 42. Rxd5 $11 {[%emt 0:00:00][%mdl 4096] Endgame KRB-KRB} Re6 {[%emt 0:02:40]} 43. Re5 {[%emt 0:00:00]} Rc6 {[%emt 0:08:53]} 44. h4 {[%emt 0:00:00]} Bd6 {[%emt 0:02:53]} 45. Rd5 {[%emt 0:00:00]} Bxg3+ {[%emt 0:00:25]} 46. Kxg3 {[%emt 0:00:00] KR-KR} Kf8 {[%emt 0:00:34]} 47. Kf4 {[%emt 0:00:00]} Ke7 {[%emt 0:01:34]} 48. g4 {[%emt 0:00:00]} g6 {[%emt 0:06:06]} 49. Re5+ {[%emt 0:00:00]} Re6 {[%emt 0:01:56]} 50. g5 {[%emt 0:00:00]} hxg5+ {[%emt 0:02:20]} 51. hxg5 {[%emt 0:00:00]} Kd6 {[%emt 0:00:34]} 52. Rb5 {[%emt 0:00:00]} Kc6 {[%emt 0:00:55]} 53. Re5 {[%emt 0:02:32] [#] White wants to mate with Rxe6+.} Kd6 {[%emt 0:00:09]} 54. Rb5 {[%emt 0:00:19]} Kc6 {[%emt 0:00:05]} 55. b4 {[%emt 0:00:26]} axb4 {[%emt 0:00:15]} 56. Rxb4 {[%emt 0:00:01]} Kc5 {[%emt 0:00:48]} 57. Rb5+ {[%emt 0:00:01]} Kc6 {[%emt 0:00:25]} 58. Re5 {[%emt 0:00:43] [#] White threatens Rxe6+ and mate.} Kd6 {[%emt 0:00:26]} 59. Rb5 {[%emt 0:00:25]} Kc6 {[%emt 0:00:12]} 60. Re5 {[%emt 0:00:44] Weighted Error Value: White=0.04 (flawless) /Black=0.04 (flawless)} 1/2-1/2